[Event "Titled Tuesday Blitz January 10 Early 2023"]
[White "Rangel, Daniel"]
[Black "Wagner, Dennis"]
[WhiteFideId "2124475"]
[BlackFideId "24650684"]
[WhiteElo "2207"]
[BlackElo "2595"]
[Result "0-1"]
[Round "11"]
[TimeControl "180+2"]
[Date "2023.01.10"]
[WhiteClock "0:00:02"]
[BlackClock "0:00:23"]

1. c4 {[%clk 0:03:00]}  g6 {[%clk 0:02:58]} 2. g3 {[%clk 0:03:00]}  Bg7 {[%clk 0:02:58]} 3. Bg2 {[%clk 0:03:01]}  c5 {[%clk 0:02:58]} 4. Nc3 {[%clk 0:03:01]}  Nc6 {[%clk 0:02:58]} 5. e3 {[%clk 0:03:01]}  d6 {[%clk 0:02:57]} 6. Nge2 {[%clk 0:03:02]}  h5 {[%clk 0:02:57]} 7. h4 {[%clk 0:02:54]}  Bg4 {[%clk 0:02:55]} 8. f3 {[%clk 0:02:29]}  Be6 {[%clk 0:02:53]} 9. b3 {[%clk 0:02:28]}  Nh6 {[%clk 0:02:52]} 10. Nf4 {[%clk 0:02:25]}  Nf5 {[%clk 0:02:46]} 11. Nxe6 {[%clk 0:02:23]}  fxe6 {[%clk 0:02:47]} 12. Kf2 {[%clk 0:02:18]}  Be5 {[%clk 0:02:35]} 13. f4 {[%clk 0:02:15]}  Bxc3 {[%clk 0:02:32]} 14. dxc3 {[%clk 0:02:16]}  Qa5 {[%clk 0:02:24]} 15. Bxc6+ {[%clk 0:02:03]}  bxc6 {[%clk 0:02:23]} 16. Qd3 {[%clk 0:02:03]}  O-O {[%clk 0:02:14]} 17. Rg1 {[%clk 0:01:44]}  Rf6 {[%clk 0:02:01]} 18. g4 {[%clk 0:01:43]}  hxg4 {[%clk 0:02:01]} 19. Rxg4 {[%clk 0:01:42]}  Kf7 {[%clk 0:01:59]} 20. Bd2 {[%clk 0:01:35]}  Rh8 {[%clk 0:01:58]} 21. b4 {[%clk 0:01:12]}  Qa3 {[%clk 0:01:50]} 22. bxc5 {[%clk 0:01:03]}  dxc5 {[%clk 0:01:19]} 23. e4 {[%clk 0:00:56]}  Rxh4 {[%clk 0:01:13]} 24. Rxh4 {[%clk 0:00:51]}  Nxh4 {[%clk 0:01:13]} 25. Rh1 {[%clk 0:00:38]}  g5 {[%clk 0:01:06]} 26. Ke2 {[%clk 0:00:37]}  Qxa2 {[%clk 0:01:01]} 27. fxg5 {[%clk 0:00:30]}  Rf3 {[%clk 0:00:59]} 28. Rxh4 {[%clk 0:00:12]}  Rxd3 {[%clk 0:00:58]} 29. Kxd3 {[%clk 0:00:13]}  Qb1+ {[%clk 0:00:56]} 30. Ke3 {[%clk 0:00:13]}  Qg1+ {[%clk 0:00:55]} 31. Kf3 {[%clk 0:00:10]}  Qf1+ {[%clk 0:00:54]} 32. Ke3 {[%clk 0:00:11]}  Kg6 {[%clk 0:00:45]} 33. Rf4 {[%clk 0:00:09]}  Qxc4 {[%clk 0:00:43]} 34. Kf3 {[%clk 0:00:08]}  Qd3+ {[%clk 0:00:41]} 35. Be3 {[%clk 0:00:09]}  Qxc3 {[%clk 0:00:37]} 36. Rh4 {[%clk 0:00:10]}  Qb3 {[%clk 0:00:31]} 37. Rh6+ {[%clk 0:00:09]}  Kg7 {[%clk 0:00:31]} 38. Rh3 {[%clk 0:00:04]}  a5 {[%clk 0:00:29]} 39. Kg4 {[%clk 0:00:03]}  Qd1+ {[%clk 0:00:29]} 40. Kh4 {[%clk 0:00:03]}  Kg6 {[%clk 0:00:29]} 41. Bf4 {[%clk 0:00:03]}  a4 {[%clk 0:00:27]} 42. Kg3 {[%clk 0:00:03]}  Qg1+ {[%clk 0:00:25]} 43. Kf3 {[%clk 0:00:03]}  Qf1+ {[%clk 0:00:25]} 44. Kg4 {[%clk 0:00:03]}  Qg2+ {[%clk 0:00:25]} 45. Bg3 {[%clk 0:00:02]}  Qxe4+ {[%clk 0:00:24]} 46. Bf4 {[%clk 0:00:02]}  Qg2+ {[%clk 0:00:23]} 47. Bg3 {[%clk 0:00:02]}  Qe2+ {[%clk 0:00:24]} 48. Kh4 {[%clk 0:00:02]}  Qh5# {[%clk 0:00:23]} 0-1


[Site "https://www.chess.com"]

[Event "Titled Tuesday Blitz January 10 Early 2023"]
[White "Ronka, Erik"]
[Black "Ilkhomi, Jaloliddin"]
[WhiteFideId "505080"]
[BlackFideId "14700948"]
[WhiteElo "2276"]
[BlackElo "1997"]
[Result "0-1"]
[Round "11"]
[TimeControl "180+2"]
[Date "2023.01.10"]
[WhiteClock "0:01:20"]
[BlackClock "0:02:01"]

1. d4 {[%clk 0:03:00]}  Nf6 {[%clk 0:02:50]} 2. Bf4 {[%clk 0:03:01]}  e6 {[%clk 0:02:49]} 3. e3 {[%clk 0:03:01]}  b6 {[%clk 0:02:50]} 4. Nf3 {[%clk 0:02:56]}  Bb7 {[%clk 0:02:50]} 5. Bd3 {[%clk 0:02:57]}  Be7 {[%clk 0:02:46]} 6. h3 {[%clk 0:02:57]}  O-O {[%clk 0:02:46]} 7. c4 {[%clk 0:02:52]}  d5 {[%clk 0:02:46]} 8. cxd5 {[%clk 0:02:48]}  exd5 {[%clk 0:02:42]} 9. O-O {[%clk 0:02:48]}  Nbd7 {[%clk 0:02:41]} 10. Nc3 {[%clk 0:02:47]}  Rc8 {[%clk 0:02:40]} 11. Rc1 {[%clk 0:02:32]}  c5 {[%clk 0:02:34]} 12. dxc5 {[%clk 0:02:23]}  Nxc5 {[%clk 0:02:31]} 13. Bb1 {[%clk 0:02:22]}  Bd6 {[%clk 0:02:31]} 14. Bxd6 {[%clk 0:02:09]}  Qxd6 {[%clk 0:02:32]} 15. Nb5 {[%clk 0:01:59]}  Qb8 {[%clk 0:02:29]} 16. Qd4 {[%clk 0:01:41]}  Ba6 {[%clk 0:02:04]} 17. a4 {[%clk 0:01:21]}  Nb3 {[%clk 0:02:02]} 18. Rc2 {[%clk 0:01:20]}  Nxd4 {[%clk 0:02:01]} 0-1


[Site "https://www.chess.com"]

[Event "Titled Tuesday Blitz January 10 Early 2023"]
[White "Musovic, Armin"]
[Black "Tologon tegin, Semetei"]
[WhiteFideId "939935"]
[BlackFideId "13800574"]
[WhiteElo "2261"]
[BlackElo "2372"]
[Result "0-1"]
[Round "11"]
[TimeControl "180+2"]
[Date "2023.01.10"]
[WhiteClock "0:01:03"]
[BlackClock "0:00:25"]

1. a3 {[%clk 0:02:50]}  d5 {[%clk 0:02:54]} 2. Nc3 {[%clk 0:02:50]}  Nf6 {[%clk 0:02:50]} 3. d3 {[%clk 0:02:50]}  Bf5 {[%clk 0:02:48]} 4. Bg5 {[%clk 0:02:50]}  e6 {[%clk 0:02:48]} 5. e4 {[%clk 0:02:50]}  dxe4 {[%clk 0:02:48]} 6. dxe4 {[%clk 0:02:51]}  Qxd1+ {[%clk 0:02:48]} 7. Rxd1 {[%clk 0:02:52]}  Bg6 {[%clk 0:02:45]} 8. f3 {[%clk 0:02:52]}  c6 {[%clk 0:02:42]} 9. Nge2 {[%clk 0:02:51]}  Nbd7 {[%clk 0:02:41]} 10. Be3 {[%clk 0:02:50]}  Bc5 {[%clk 0:02:35]} 11. Kf2 {[%clk 0:02:50]}  O-O-O {[%clk 0:02:12]} 12. Bxc5 {[%clk 0:02:46]}  Nxc5 {[%clk 0:02:12]} 13. Nd4 {[%clk 0:02:42]}  e5 {[%clk 0:02:06]} 14. Nb3 {[%clk 0:02:40]}  Nxb3 {[%clk 0:02:04]} 15. cxb3 {[%clk 0:02:40]}  Nd7 {[%clk 0:02:05]} 16. Bd3 {[%clk 0:02:36]}  f6 {[%clk 0:02:04]} 17. Bc2 {[%clk 0:02:36]}  Bf7 {[%clk 0:02:03]} 18. b4 {[%clk 0:02:34]}  Nb6 {[%clk 0:02:01]} 19. b3 {[%clk 0:02:34]}  Kc7 {[%clk 0:01:56]} 20. Ke3 {[%clk 0:02:34]}  Nc8 {[%clk 0:01:44]} 21. h4 {[%clk 0:02:32]}  h5 {[%clk 0:01:37]} 22. Rxd8 {[%clk 0:02:29]}  Rxd8 {[%clk 0:01:36]} 23. Rc1 {[%clk 0:02:26]}  Nd6 {[%clk 0:01:34]} 24. Bd3 {[%clk 0:02:22]}  Bxb3 {[%clk 0:01:29]} 25. g4 {[%clk 0:02:17]}  hxg4 {[%clk 0:01:28]} 26. fxg4 {[%clk 0:02:17]}  Rh8 {[%clk 0:01:27]} 27. h5 {[%clk 0:02:15]}  Nf7 {[%clk 0:01:25]} 28. Ne2 {[%clk 0:01:57]}  Be6 {[%clk 0:01:19]} 29. Rg1 {[%clk 0:01:53]}  Nh6 {[%clk 0:01:11]} 30. Kf3 {[%clk 0:01:49]}  Rd8 {[%clk 0:01:07]} 31. Nc1 {[%clk 0:01:49]}  Nf7 {[%clk 0:01:05]} 32. Ke3 {[%clk 0:01:46]}  Ng5 {[%clk 0:01:04]} 33. Ne2 {[%clk 0:01:41]}  b6 {[%clk 0:01:02]} 34. Rh1 {[%clk 0:01:42]}  Nf7 {[%clk 0:01:01]} 35. Rg1 {[%clk 0:01:39]}  Ra8 {[%clk 0:00:58]} 36. Nc3 {[%clk 0:01:34]}  Rd8 {[%clk 0:00:43]} 37. Ke2 {[%clk 0:01:24]}  Ng5 {[%clk 0:00:38]} 38. Nd1 {[%clk 0:01:21]}  Nh3 {[%clk 0:00:36]} 39. Rg3 {[%clk 0:01:13]}  Nf4+ {[%clk 0:00:36]} 40. Kd2 {[%clk 0:01:14]}  Rxd3+ {[%clk 0:00:32]} 41. Rxd3 {[%clk 0:01:15]}  Nxd3 {[%clk 0:00:32]} 42. Kxd3 {[%clk 0:01:16]}  Bxg4 {[%clk 0:00:33]} 43. Ne3 {[%clk 0:01:16]}  Bxh5 {[%clk 0:00:33]} 44. Nf5 {[%clk 0:01:17]}  Bg4 {[%clk 0:00:33]} 45. Ne3 {[%clk 0:01:10]}  Be6 {[%clk 0:00:32]} 46. a4 {[%clk 0:01:10]}  g6 {[%clk 0:00:31]} 47. a5 {[%clk 0:01:10]}  bxa5 {[%clk 0:00:29]} 48. bxa5 {[%clk 0:01:11]}  Kb7 {[%clk 0:00:29]} 49. Kc3 {[%clk 0:01:10]}  c5 {[%clk 0:00:28]} 50. Kd3 {[%clk 0:01:05]}  Ka6 {[%clk 0:00:28]} 51. Nd5 {[%clk 0:01:06]}  Bxd5 {[%clk 0:00:26]} 52. exd5 {[%clk 0:01:06]}  Kxa5 {[%clk 0:00:27]} 53. Kc4 {[%clk 0:01:03]}  Kb6 {[%clk 0:00:27]} 54. d6 {[%clk 0:01:03]}  Kc6 {[%clk 0:00:25]} 0-1


[Site "https://www.chess.com"]

[Event "Titled Tuesday Blitz January 10 Early 2023"]
[White "Kuznetsova, Olga"]
[Black "Djokovic, Nebojsa"]
[WhiteFideId "4191323"]
[BlackFideId "938300"]
[WhiteElo "2142"]
[BlackElo "2119"]
[Result "1-0"]
[Round "11"]
[TimeControl "180+2"]
[Date "2023.01.10"]
[WhiteClock "0:01:04"]
[BlackClock "0:00:15"]

1. d4 {[%clk 0:03:00]}  e6 {[%clk 0:03:00]} 2. Bf4 {[%clk 0:02:58]}  Nf6 {[%clk 0:03:00]} 3. e3 {[%clk 0:02:58]}  d5 {[%clk 0:03:01]} 4. Nd2 {[%clk 0:02:58]}  Bd6 {[%clk 0:03:01]} 5. Bg3 {[%clk 0:02:58]}  O-O {[%clk 0:03:02]} 6. Bd3 {[%clk 0:02:58]}  c5 {[%clk 0:03:02]} 7. c3 {[%clk 0:02:58]}  Qc7 {[%clk 0:03:03]} 8. Ngf3 {[%clk 0:02:57]}  Nbd7 {[%clk 0:03:03]} 9. e4 {[%clk 0:02:53]}  dxe4 {[%clk 0:02:49]} 10. Nxe4 {[%clk 0:02:53]}  Nxe4 {[%clk 0:02:47]} 11. Bxe4 {[%clk 0:02:53]}  Nf6 {[%clk 0:02:43]} 12. Bc2 {[%clk 0:02:52]}  cxd4 {[%clk 0:02:31]} 13. Nxd4 {[%clk 0:02:52]}  Rd8 {[%clk 0:02:21]} 14. Qe2 {[%clk 0:02:33]}  a6 {[%clk 0:02:18]} 15. Rd1 {[%clk 0:02:31]}  b5 {[%clk 0:02:08]} 16. Bh4 {[%clk 0:02:25]}  Be7 {[%clk 0:01:47]} 17. Bxf6 {[%clk 0:02:15]}  Bxf6 {[%clk 0:01:48]} 18. Qe4 {[%clk 0:02:15]}  Bb7 {[%clk 0:01:46]} 19. Qxh7+ {[%clk 0:02:15]}  Kf8 {[%clk 0:01:46]} 20. O-O {[%clk 0:02:10]}  b4 {[%clk 0:01:19]} 21. Rfe1 {[%clk 0:02:05]}  Bxd4 {[%clk 0:01:14]} 22. cxd4 {[%clk 0:02:00]}  Ke7 {[%clk 0:01:10]} 23. Bb3 {[%clk 0:01:30]}  Rh8 {[%clk 0:00:34]} 24. Rxe6+ {[%clk 0:01:21]}  Kd7 {[%clk 0:00:35]} 25. Qxg7 {[%clk 0:01:12]}  Qxh2+ {[%clk 0:00:34]} 26. Kf1 {[%clk 0:01:13]}  Qxg2+ {[%clk 0:00:29]} 27. Qxg2 {[%clk 0:01:10]}  Bxg2+ {[%clk 0:00:30]} 28. Kxg2 {[%clk 0:01:09]}  fxe6 {[%clk 0:00:31]} 29. d5 {[%clk 0:01:09]}  e5 {[%clk 0:00:29]} 30. d6 {[%clk 0:01:03]}  Rag8+ {[%clk 0:00:19]} 31. Kf3 {[%clk 0:01:03]}  Rh4 {[%clk 0:00:19]} 32. Bxg8 {[%clk 0:01:01]}  Rf4+ {[%clk 0:00:18]} 33. Ke3 {[%clk 0:01:01]}  Rg4 {[%clk 0:00:17]} 34. Be6+ {[%clk 0:01:01]}  Kxe6 {[%clk 0:00:17]} 35. d7 {[%clk 0:01:01]}  Rd4 {[%clk 0:00:17]} 36. d8=Q {[%clk 0:01:00]}  Rxd8 {[%clk 0:00:17]} 37. Rxd8 {[%clk 0:01:00]}  Ke7 {[%clk 0:00:11]} 38. Ra8 {[%clk 0:01:00]}  Kd6 {[%clk 0:00:11]} 39. Rxa6+ {[%clk 0:01:00]}  Kc5 {[%clk 0:00:12]} 40. Ke4 {[%clk 0:01:00]}  Kc4 {[%clk 0:00:12]} 41. Rc6+ {[%clk 0:01:00]}  Kb5 {[%clk 0:00:12]} 42. Kd5 {[%clk 0:01:00]}  b3 {[%clk 0:00:12]} 43. axb3 {[%clk 0:00:59]}  e4 {[%clk 0:00:13]} 44. Rc4 {[%clk 0:00:59]}  e3 {[%clk 0:00:13]} 45. fxe3 {[%clk 0:00:59]}  Ka5 {[%clk 0:00:13]} 46. e4 {[%clk 0:01:00]}  Kb5 {[%clk 0:00:14]} 47. e5 {[%clk 0:01:01]}  Kb6 {[%clk 0:00:14]} 48. e6 {[%clk 0:01:02]}  Ka5 {[%clk 0:00:14]} 49. e7 {[%clk 0:01:03]}  Kb5 {[%clk 0:00:15]} 50. e8=Q+ {[%clk 0:01:03]}  Kb6 {[%clk 0:00:15]} 51. Qc6+ {[%clk 0:01:04]}  Ka7 {[%clk 0:00:15]} 52. Ra4+ {[%clk 0:01:04]} 1-0


[Site "https://www.chess.com"]

[Event "Titled Tuesday Blitz January 10 Early 2023"]
[White "Tasev, Dejan"]
[Black "Lehtosaari, Mauri"]
[WhiteFideId "936618"]
[BlackFideId "501999"]
[WhiteElo "2205"]
[BlackElo "2176"]
[Result "1/2-1/2"]
[Round "11"]
[TimeControl "180+2"]
[Date "2023.01.10"]
[WhiteClock "0:00:17"]
[BlackClock "0:00:11"]

1. e4 {[%clk 0:03:00]}  c5 {[%clk 0:02:58]} 2. Nf3 {[%clk 0:03:00]}  e6 {[%clk 0:02:58]} 3. Nc3 {[%clk 0:03:00]}  Nc6 {[%clk 0:02:55]} 4. g3 {[%clk 0:03:00]}  d5 {[%clk 0:02:48]} 5. exd5 {[%clk 0:02:59]}  exd5 {[%clk 0:02:49]} 6. Bg2 {[%clk 0:03:00]}  Nf6 {[%clk 0:02:48]} 7. O-O {[%clk 0:02:59]}  Be7 {[%clk 0:02:48]} 8. d4 {[%clk 0:02:59]}  cxd4 {[%clk 0:02:45]} 9. Nxd4 {[%clk 0:02:59]}  O-O {[%clk 0:02:46]} 10. Nce2 {[%clk 0:02:56]}  Bg4 {[%clk 0:02:23]} 11. Be3 {[%clk 0:02:46]}  a6 {[%clk 0:02:19]} 12. h3 {[%clk 0:02:42]}  Bh5 {[%clk 0:02:19]} 13. c3 {[%clk 0:02:36]}  Rc8 {[%clk 0:02:15]} 14. g4 {[%clk 0:02:27]}  Bg6 {[%clk 0:02:15]} 15. Ng3 {[%clk 0:02:26]}  Re8 {[%clk 0:02:01]} 16. Re1 {[%clk 0:02:18]}  Ne4 {[%clk 0:01:26]} 17. Ngf5 {[%clk 0:02:13]}  Bf6 {[%clk 0:01:19]} 18. Rc1 {[%clk 0:01:50]}  Be5 {[%clk 0:01:13]} 19. Nf3 {[%clk 0:01:35]}  Bc7 {[%clk 0:01:04]} 20. Bd4 {[%clk 0:01:29]}  Nxd4 {[%clk 0:00:59]} 21. N3xd4 {[%clk 0:01:22]}  Nd6 {[%clk 0:00:38]} 22. Rxe8+ {[%clk 0:01:13]}  Qxe8 {[%clk 0:00:29]} 23. Qf3 {[%clk 0:01:08]}  Nxf5 {[%clk 0:00:26]} 24. Nxf5 {[%clk 0:01:06]}  Qe5 {[%clk 0:00:25]} 25. Qxd5 {[%clk 0:00:53]}  Bxf5 {[%clk 0:00:20]} 26. Qxe5 {[%clk 0:00:50]}  Bxe5 {[%clk 0:00:21]} 27. gxf5 {[%clk 0:00:50]}  Rc7 {[%clk 0:00:18]} 28. Rd1 {[%clk 0:00:50]}  f6 {[%clk 0:00:17]} 29. Bd5+ {[%clk 0:00:46]}  Kf8 {[%clk 0:00:17]} 30. Be6 {[%clk 0:00:45]}  Ke7 {[%clk 0:00:17]} 31. Kg2 {[%clk 0:00:45]}  b5 {[%clk 0:00:16]} 32. a3 {[%clk 0:00:44]}  a5 {[%clk 0:00:16]} 33. Rd3 {[%clk 0:00:42]}  g6 {[%clk 0:00:17]} 34. Kf3 {[%clk 0:00:42]}  b4 {[%clk 0:00:15]} 35. cxb4 {[%clk 0:00:41]}  axb4 {[%clk 0:00:16]} 36. axb4 {[%clk 0:00:41]}  Bxb2 {[%clk 0:00:16]} 37. b5 {[%clk 0:00:39]}  Rb7 {[%clk 0:00:16]} 38. Rb3 {[%clk 0:00:39]}  Bd4 {[%clk 0:00:16]} 39. Ke4 {[%clk 0:00:39]}  Bb6 {[%clk 0:00:16]} 40. f3 {[%clk 0:00:36]}  Rc7 {[%clk 0:00:15]} 41. Bd5 {[%clk 0:00:34]}  Ra7 {[%clk 0:00:15]} 42. Rb4 {[%clk 0:00:33]}  Kd6 {[%clk 0:00:14]} 43. Bc6 {[%clk 0:00:31]}  Re7+ {[%clk 0:00:14]} 44. Kf4 {[%clk 0:00:29]}  Be3+ {[%clk 0:00:13]} 45. Kg4 {[%clk 0:00:28]}  h5+ {[%clk 0:00:13]} 46. Kg3 {[%clk 0:00:28]}  g5 {[%clk 0:00:13]} 47. h4 {[%clk 0:00:28]}  Bb6 {[%clk 0:00:10]} 48. hxg5 {[%clk 0:00:28]}  fxg5 {[%clk 0:00:11]} 49. Re4 {[%clk 0:00:20]}  Rxe4 {[%clk 0:00:10]} 50. fxe4 {[%clk 0:00:21]}  Ke5 {[%clk 0:00:11]} 51. Kh3 {[%clk 0:00:21]}  Bc7 {[%clk 0:00:10]} 52. Kg3 {[%clk 0:00:19]}  Bb6 {[%clk 0:00:10]} 53. Kh3 {[%clk 0:00:18]}  Bd8 {[%clk 0:00:10]} 54. Kg3 {[%clk 0:00:17]}  Bb6 {[%clk 0:00:11]} 1/2-1/2


[Site "https://www.chess.com"]

[Event "Titled Tuesday Blitz January 10 Early 2023"]
[White "Kamalidenova, Meruert"]
[Black "Yaksin, Oleg"]
[WhiteFideId "13712802"]
[BlackFideId "24105880"]
[WhiteElo "2350"]
[BlackElo "2389"]
[Result "0-1"]
[Round "11"]
[TimeControl "180+2"]
[Date "2023.01.10"]
[WhiteClock "0:00:05"]
[BlackClock "0:00:08"]

1. e4 {[%clk 0:03:00]}  c5 {[%clk 0:03:00]} 2. Nf3 {[%clk 0:02:59]}  d6 {[%clk 0:03:00]} 3. d4 {[%clk 0:03:00]}  cxd4 {[%clk 0:03:01]} 4. Nxd4 {[%clk 0:03:00]}  Nf6 {[%clk 0:03:01]} 5. Nc3 {[%clk 0:03:01]}  Nc6 {[%clk 0:03:01]} 6. Bg5 {[%clk 0:02:54]}  e6 {[%clk 0:03:02]} 7. Bb5 {[%clk 0:02:49]}  Bd7 {[%clk 0:03:01]} 8. Bxc6 {[%clk 0:02:43]}  bxc6 {[%clk 0:03:01]} 9. Qd2 {[%clk 0:02:43]}  Be7 {[%clk 0:02:43]} 10. O-O-O {[%clk 0:02:39]}  O-O {[%clk 0:02:41]} 11. Kb1 {[%clk 0:02:38]}  e5 {[%clk 0:02:34]} 12. Nde2 {[%clk 0:02:27]}  Ne8 {[%clk 0:02:33]} 13. Be3 {[%clk 0:02:24]}  Be6 {[%clk 0:02:30]} 14. f4 {[%clk 0:02:23]}  Rb8 {[%clk 0:02:26]} 15. f5 {[%clk 0:02:21]}  Bc4 {[%clk 0:02:26]} 16. g4 {[%clk 0:02:18]}  Qa5 {[%clk 0:02:17]} 17. g5 {[%clk 0:02:12]}  d5 {[%clk 0:02:14]} 18. exd5 {[%clk 0:02:10]}  Ba3 {[%clk 0:02:12]} 19. b3 {[%clk 0:02:09]}  Nd6 {[%clk 0:02:05]} 20. g6 {[%clk 0:02:02]}  Nxf5 {[%clk 0:01:52]} 21. gxh7+ {[%clk 0:02:02]}  Kxh7 {[%clk 0:01:52]} 22. Ng3 {[%clk 0:01:54]}  Nxe3 {[%clk 0:01:36]} 23. Qxe3 {[%clk 0:01:53]}  f5 {[%clk 0:01:08]} 24. Rhg1 {[%clk 0:01:47]}  Bc5 {[%clk 0:01:00]} 25. Qg5 {[%clk 0:01:44]}  Bxb3 {[%clk 0:00:55]} 26. cxb3 {[%clk 0:01:36]}  Qxc3 {[%clk 0:00:55]} 27. Qh5+ {[%clk 0:01:12]}  Kg8 {[%clk 0:00:52]} 28. Rg2 {[%clk 0:01:13]}  cxd5 {[%clk 0:00:24]} 29. Nxf5 {[%clk 0:00:50]}  Rxf5 {[%clk 0:00:13]} 30. Qxf5 {[%clk 0:00:50]}  Bd4 {[%clk 0:00:08]} 31. Rxd4 {[%clk 0:00:34]}  Qxd4 {[%clk 0:00:09]} 32. Qe6+ {[%clk 0:00:26]}  Kh8 {[%clk 0:00:09]} 33. Qh3+ {[%clk 0:00:18]}  Kg8 {[%clk 0:00:09]} 34. Qg3 {[%clk 0:00:18]}  Qe4+ {[%clk 0:00:05]} 35. Kb2 {[%clk 0:00:18]}  Rb7 {[%clk 0:00:06]} 36. Rc2 {[%clk 0:00:18]}  Qd4+ {[%clk 0:00:06]} 37. Kb1 {[%clk 0:00:17]}  Rf7 {[%clk 0:00:03]} 38. Rc8+ {[%clk 0:00:16]}  Rf8 {[%clk 0:00:04]} 39. Rxf8+ {[%clk 0:00:13]}  Kxf8 {[%clk 0:00:05]} 40. Qf3+ {[%clk 0:00:13]}  Ke7 {[%clk 0:00:05]} 41. Qg3 {[%clk 0:00:13]}  Qe4+ {[%clk 0:00:05]} 42. Kb2 {[%clk 0:00:13]}  Kf6 {[%clk 0:00:05]} 43. Qf2+ {[%clk 0:00:12]}  Qf4 {[%clk 0:00:06]} 44. Qxa7 {[%clk 0:00:13]}  Qxh2+ {[%clk 0:00:06]} 45. Ka3 {[%clk 0:00:13]}  d4 {[%clk 0:00:06]} 46. Qb6+ {[%clk 0:00:13]}  Kf5 {[%clk 0:00:07]} 47. Qd8 {[%clk 0:00:12]}  Ke4 {[%clk 0:00:06]} 48. Qa8+ {[%clk 0:00:12]}  Ke3 {[%clk 0:00:06]} 49. Qd5 {[%clk 0:00:11]}  e4 {[%clk 0:00:05]} 50. Qg5+ {[%clk 0:00:11]}  Qf4 {[%clk 0:00:05]} 51. Qg1+ {[%clk 0:00:11]}  Ke2 {[%clk 0:00:05]} 52. Qg2+ {[%clk 0:00:10]}  Kd3 {[%clk 0:00:06]} 53. Qxg7 {[%clk 0:00:07]}  e3 {[%clk 0:00:06]} 54. Qg6+ {[%clk 0:00:07]}  Kd2 {[%clk 0:00:06]} 55. Qb1 {[%clk 0:00:06]}  e2 {[%clk 0:00:05]} 56. Qb2+ {[%clk 0:00:07]}  Ke3 {[%clk 0:00:05]} 57. Qc1+ {[%clk 0:00:08]}  Kf3 {[%clk 0:00:05]} 58. Qh1+ {[%clk 0:00:07]}  Kf2 {[%clk 0:00:05]} 59. Kb2 {[%clk 0:00:05]}  e1=Q {[%clk 0:00:05]} 60. Qxe1+ {[%clk 0:00:05]}  Kxe1 {[%clk 0:00:06]} 61. a4 {[%clk 0:00:06]}  Qd2+ {[%clk 0:00:06]} 62. Ka3 {[%clk 0:00:06]}  Qc3 {[%clk 0:00:07]} 63. Ka2 {[%clk 0:00:05]}  Kd2 {[%clk 0:00:07]} 64. a5 {[%clk 0:00:05]}  Kc2 {[%clk 0:00:08]} 0-1


[Site "https://www.chess.com"]

[Event "Titled Tuesday Blitz January 10 Early 2023"]
[White "Sihite, Chelsie Monica Ignesias"]
[Black "Crevatin, Leo"]
[WhiteFideId "7101198"]
[BlackFideId "1726307"]
[WhiteElo "2266"]
[BlackElo "2292"]
[Result "0-1"]
[Round "11"]
[TimeControl "180+2"]
[Date "2023.01.10"]
[WhiteClock "0:00:49"]
[BlackClock "0:00:27"]

1. c4 {[%clk 0:02:52]}  e5 {[%clk 0:02:58]} 2. g3 {[%clk 0:02:52]}  Nc6 {[%clk 0:02:58]} 3. Bg2 {[%clk 0:02:53]}  Bc5 {[%clk 0:02:59]} 4. e3 {[%clk 0:02:51]}  d6 {[%clk 0:02:58]} 5. Ne2 {[%clk 0:02:51]}  a6 {[%clk 0:02:58]} 6. O-O {[%clk 0:02:51]}  Ba7 {[%clk 0:02:58]} 7. b3 {[%clk 0:02:51]}  h5 {[%clk 0:02:58]} 8. h3 {[%clk 0:02:51]}  h4 {[%clk 0:02:56]} 9. g4 {[%clk 0:02:51]}  f5 {[%clk 0:02:57]} 10. Nec3 {[%clk 0:02:51]}  Nf6 {[%clk 0:02:55]} 11. g5 {[%clk 0:02:50]}  Nh5 {[%clk 0:02:55]} 12. d4 {[%clk 0:02:43]}  Qxg5 {[%clk 0:02:50]} 13. Nd5 {[%clk 0:02:38]}  O-O {[%clk 0:02:31]} 14. Nxc7 {[%clk 0:02:31]}  f4 {[%clk 0:02:24]} 15. Kh2 {[%clk 0:02:31]}  Rb8 {[%clk 0:02:19]} 16. Rg1 {[%clk 0:02:22]}  Kh8 {[%clk 0:02:06]} 17. Bxc6 {[%clk 0:02:18]}  Ng3 {[%clk 0:01:58]} 18. exf4 {[%clk 0:02:11]}  Qe7 {[%clk 0:01:39]} 19. fxg3 {[%clk 0:02:04]}  bxc6 {[%clk 0:01:36]} 20. Be3 {[%clk 0:01:38]}  Qxc7 {[%clk 0:01:33]} 21. Qh5+ {[%clk 0:01:27]}  Kg8 {[%clk 0:01:32]} 22. Qxh4 {[%clk 0:01:27]}  exd4 {[%clk 0:01:30]} 23. Bf2 {[%clk 0:01:26]}  Bf5 {[%clk 0:01:23]} 24. Nd2 {[%clk 0:01:25]}  Rbe8 {[%clk 0:01:23]} 25. Rae1 {[%clk 0:01:24]}  d3 {[%clk 0:01:22]} 26. g4 {[%clk 0:01:20]}  Bc8 {[%clk 0:01:16]} 27. Ne4 {[%clk 0:01:14]}  Bxf2 {[%clk 0:00:57]} 28. Qxf2 {[%clk 0:01:15]}  d5 {[%clk 0:00:56]} 29. Ng5 {[%clk 0:01:12]}  Rxe1 {[%clk 0:00:29]} 30. Rxe1 {[%clk 0:01:11]}  Rxf4 {[%clk 0:00:29]} 31. Qh4 {[%clk 0:00:55]}  Rf2+ {[%clk 0:00:28]} 32. Kg1 {[%clk 0:00:49]}  Qh2# {[%clk 0:00:27]} 0-1


[Site "https://www.chess.com"]